bitfinex-derivatives/quotes_BNBF0:USTF0_20250220
["timestamp","ask_amount","ask_price","bid_price","bid_amount"]
[1740034826944,0.28378279,648.02,646.91,0.30916201]
[1740034827145,0.28378279,648.01,646.91,0.30916201]
[1740034827338,0.30862768,648.03,646.91,0.30916201]
[1740034827339,0.28378279,648.02,646.91,0.30916201]
[1740034827542,0.28378279,648.01,646.91,0.30916201]
[1740034827742,0.28378279,648.02,646.91,0.30916201]
[1740034827943,0.59242,648.01,646.91,0.30916201]
[1740034828143,0.28378279,648.0,646.91,0.30916201]
[1740034828339,0.28378279,648.0,646.73,1.61252331]
[1740034828545,0.28378279,648.0,646.35,1.15253345]
[1740034828744,0.30864673,647.99,646.66,1.61312129]
[1740034828945,0.28378279,647.98,646.66,1.61312129]
[1740034829145,0.28378279,647.98,646.37,0.3094203]
[1740034829345,0.28378279,647.98,646.66,1.61317114]
[1740034829646,0.28378279,647.98,646.37,0.3094203]
[1740034829846,0.30865626,647.97,646.66,1.61317737]
[1740034830041,0.28378279,647.96,646.37,0.3094203]
[1740034830444,0.28378279,647.96,646.66,1.6131836]
[1740034830642,0.28378279,647.96,646.37,0.3094203]
[1740034830843,0.28378279,647.96,646.38,1.61338928]
[1740034832351,0.28378279,647.96,646.4,0.30940594]
[1740034834749,0.30865626,647.97,646.4,0.30940594]
[1740034837753,0.28376337,647.96,646.4,0.30940594]
[1740034838553,0.30865626,647.97,646.4,0.30940594]
[1740034838852,0.28376586,647.96,646.4,0.30940594]
[1740034839953,0.30865626,647.97,646.4,0.30940594]
[1740034843757,0.30865626,647.97,646.5,1.15253345]
[1740034844656,0.30865626,647.97,646.52,0.30934851]
[1740034848958,0.30865626,647.97,646.56,1.15253345]
[1740034849155,0.30865626,647.97,646.58,0.3093198]
[1740034854866,1.14469916,648.79,646.58,0.3093198]
[1740034855066,0.30827566,648.77,646.58,0.3093198]
[1740034855266,0.28365039,648.76,646.58,0.3093198]
[1740034855468,0.30828991,648.74,646.58,0.3093198]
[1740034855663,0.28365039,648.73,646.58,0.3093198]
[1740034856468,0.30830417,648.71,646.58,0.3093198]
[1740034856667,0.28365039,648.7,646.58,0.3093198]
[1740034857570,0.28364945,648.69,646.58,0.3093198]
[1740034857763,0.28364945,648.7,646.58,0.3093198]
[1740034857964,0.28364945,648.69,646.58,0.3093198]
[1740034858163,0.28364945,648.68,646.58,0.3093198]
[1740034858362,0.30832793,648.66,646.58,0.3093198]
[1740034858567,0.28364945,648.65,646.58,0.3093198]
[1740034858763,0.30834219,648.63,646.58,0.3093198]
[1740034858967,0.28364945,648.62,646.58,0.3093198]
[1740034859163,0.30835646,648.6,646.58,0.3093198]
[1740034859364,0.28365132,648.59,646.58,0.3093198]
[1740034859567,0.30837072,648.57,646.58,0.3093198]
[1740034859766,0.28365132,648.56,646.58,0.3093198]
[1740034860668,0.30838498,648.54,646.58,0.3093198]
[1740034860866,0.28365132,648.53,646.58,0.3093198]
[1740034861164,0.30839449,648.52,646.58,0.3093198]
[1740034861468,0.28365132,648.51,646.58,0.3093198]
[1740034861663,0.308404,648.5,646.58,0.3093198]
[1740034861869,0.28365132,648.49,646.58,0.3093198]
[1740034862170,0.30841352,648.48,646.58,0.3093198]
[1740034862368,0.28365132,648.47,646.58,0.3093198]
[1740034862669,0.30841352,648.48,646.58,0.3093198]
[1740034865067,0.28358097,648.47,646.58,0.3093198]
[1740034865273,0.59199924,648.47,646.58,0.3093198]
[1740034865473,0.30841827,648.47,646.58,0.3093198]
[1740034865672,0.28358351,648.46,646.58,0.3093198]
[1740034867476,0.28357351,648.45,646.58,0.3093198]
[1740034867676,0.28357351,648.46,646.58,0.3093198]
[1740034867976,0.28357351,648.45,646.58,0.3093198]
[1740034868272,0.28357351,648.44,646.65,1.15253345]
[1740034868472,0.28357351,648.46,646.67,0.30927675]
[1740034868675,0.28357351,648.45,646.67,0.30927675]
[1740034868876,0.28357351,648.44,646.67,0.30927675]
[1740034869175,0.28357351,648.46,646.67,0.30927675]
[1740034869373,0.28357351,648.45,646.67,0.30927675]
[1740034869579,0.28357351,648.46,646.67,0.30927675]
[1740034869775,0.28357351,648.45,646.67,0.30927675]
[1740034869976,0.28357351,648.46,646.67,0.30927675]
[1740034870173,0.28357351,648.45,646.67,0.30927675]
[1740034870378,0.30841827,648.47,646.67,0.30927675]
[1740034870982,0.28355759,648.46,646.67,1.4618102]
[1740034871280,0.30841827,648.47,646.67,1.4618102]
[1740034871776,0.28353639,648.46,646.67,1.4618102]
[1740034872582,0.30841827,648.47,646.67,1.4618102]
[1740034873580,0.30841827,648.47,646.78,1.15253345]
[1740034873780,0.30841827,648.47,646.8,0.30921459]
[1740034875275,0.28357134,648.46,646.8,0.30921459]
[1740034875874,0.30841827,648.47,646.8,0.30921459]
[1740034877980,0.28356239,648.46,646.8,0.30921459]
[1740034883081,0.2835711,648.45,646.8,0.30921459]
[1740034883276,0.2835711,648.46,646.8,0.30921459]
[1740034886579,0.2835641,648.45,646.8,0.30921459]
[1740034886885,0.2835641,648.44,646.9,1.15253345]
[1740034887087,0.2835641,648.46,646.92,0.30915723]
[1740034887382,0.2835641,648.45,646.92,0.30915723]
[1740034887581,0.2835641,648.46,646.92,0.30915723]
[1740034887787,0.2835641,648.45,646.92,0.30915723]
[1740034887987,0.2835641,648.46,646.92,0.30915723]
[1740034888187,0.2835641,648.45,646.92,0.30915723]
[1740034888387,0.2835641,648.46,646.92,0.30915723]
[1740034889283,0.30841827,648.47,646.92,0.30915723]
[1740034898691,0.30841827,648.47,646.94,1.15253345]
[1740034898893,0.30841827,648.47,646.96,0.30913812]
[1740034899090,0.28354084,648.46,646.96,0.30913812]
[1740034901092,0.28354084,648.46,647.14,1.15253345]
[1740034901295,0.28354084,648.46,647.15,0.30904736]
[1740034901494,0.30841827,648.47,647.15,0.30904736]
[1740034903199,1.14469916,648.8,647.15,0.30904736]
[1740034903500,0.28347526,648.79,647.15,0.30904736]
[1740034906301,0.3082709,648.78,647.15,0.30904736]
[1740034906496,0.28347526,648.77,647.15,0.30904736]
[1740034910597,0.30828041,648.76,647.15,0.30904736]
[1740034910803,0.28347526,648.75,647.15,0.30904736]
[1740034911700,0.30828991,648.74,647.15,0.30904736]
[1740034911895,0.28347526,648.73,647.15,0.30904736]
[1740034912097,0.30829942,648.72,647.15,0.30904736]
[1740034912302,0.28347526,648.71,647.15,0.30904736]
[1740034912497,0.30830892,648.7,647.15,0.30904736]
[1740034912699,0.28347526,648.69,647.15,0.30904736]
[1740034912899,0.30831843,648.68,647.15,0.30904736]
[1740034913102,0.28347526,648.67,647.15,0.30904736]
[1740034913402,0.30832793,648.66,647.15,0.30904736]
[1740034913601,0.28347526,648.65,647.15,0.30904736]
[1740034913795,0.30833744,648.64,647.15,0.30904736]
[1740034914000,0.28347526,648.63,647.15,0.30904736]
[1740034914199,0.30833744,648.64,647.15,0.30904736]
[1740034917008,0.28354133,648.63,647.15,0.30904736]
[1740034917608,0.30834695,648.62,647.15,0.30904736]
[1740034918002,0.28355218,648.61,647.15,0.30904736]
[1740034918203,0.30835646,648.6,647.15,0.30904736]
[1740034918408,0.28355218,648.59,647.15,0.30904736]
[1740034918609,0.30836596,648.58,647.15,0.30904736]
[1740034918807,0.28355218,648.57,647.15,0.30904736]
[1740034919109,0.30837547,648.56,647.15,0.30904736]
[1740034919302,0.28355218,648.55,647.15,0.30904736]
[1740034919508,0.30838498,648.54,647.15,0.30904736]
[1740034919706,0.28355471,648.53,647.15,0.30904736]
[1740034919907,0.30839449,648.52,647.15,0.30904736]
[1740034920208,0.28355471,648.51,647.15,0.30904736]
[1740034920409,0.59195396,648.51,647.15,0.30904736]
[1740034920608,0.28355471,648.5,647.15,0.30904736]
[1740034922210,0.59195871,648.5,647.15,0.30904736]
[1740034922403,0.28355471,648.49,647.15,0.30904736]
[1740034922608,0.59196347,648.49,647.15,0.30904736]
[1740034922904,0.28355471,648.48,647.15,0.30904736]
[1740034923111,0.30841827,648.47,647.15,0.30904736]
[1740034923405,0.28355471,648.46,647.15,0.30904736]
[1740034923611,0.30842778,648.45,647.15,0.30904736]
[1740034923812,0.28355471,648.44,647.15,0.30904736]
[1740034924008,0.3084373,648.43,647.15,0.30904736]
[1740034924214,0.28355471,648.42,647.15,0.30904736]
[1740034924414,0.30844681,648.41,647.15,0.30904736]
[1740034924611,0.28355471,648.4,647.15,0.30904736]
[1740034926515,0.59200628,648.4,647.15,0.30904736]
[1740034926715,0.28355471,648.39,647.15,0.30904736]
[1740034927616,0.30846108,648.38,647.15,0.30904736]
[1740034927814,0.28355471,648.37,647.15,0.30904736]
[1740034928012,0.3084706,648.36,647.15,0.30904736]
[1740034928213,0.28355471,648.35,647.15,0.30904736]
[1740034928410,0.30848011,648.34,647.15,0.30904736]
[1740034928616,0.28355471,648.33,647.15,0.30904736]
[1740034929612,0.30848963,648.32,647.15,0.30904736]
[1740034929817,0.28355471,648.31,647.15,0.30904736]
[1740034930719,0.30849915,648.3,647.15,0.30904736]
[1740034930915,0.28355471,648.29,647.15,0.30904736]
[1740034935325,0.30850866,648.28,647.15,0.30904736]
[1740034935624,0.28355471,648.27,647.15,0.30904736]
[1740034938332,0.30851818,648.26,647.15,0.30904736]
[1740034939028,0.28355471,648.25,647.15,0.30904736]
[1740034939529,0.3085277,648.24,647.15,0.30904736]
[1740034939729,0.28355471,648.23,647.15,0.30904736]
[1740034939929,0.30853722,648.22,647.15,0.30904736]
[1740034940123,0.28355471,648.21,647.15,0.30904736]
[1740034940331,0.30854674,648.2,647.15,0.30904736]
[1740034940529,0.28355471,648.19,647.15,0.30904736]
[1740034942528,0.30854674,648.2,647.15,0.30904736]
[1740034942834,0.28370537,648.19,647.15,0.30904736]
[1740034943132,0.59225687,648.19,647.15,0.30904736]
[1740034943332,0.28370537,648.18,647.15,0.30904736]
[1740034952040,0.59226163,648.18,647.15,0.30904736]
[1740034952236,0.28373822,648.17,647.15,0.30904736]
[1740034952639,0.28373822,648.17,646.9,1.61238011]
[1740034952840,0.30855626,648.18,646.36,1.15253345]
[1740034953040,0.28375382,648.17,646.82,1.61271013]
[1740034953342,0.28375382,648.17,646.36,1.15253345]
[1740034953541,0.28375382,648.17,646.82,1.61275996]
[1740034953741,0.28375382,648.17,646.38,0.30941551]
[1740034954135,0.28375382,648.17,646.82,1.61275996]
[1740034954344,0.5923196,648.16,646.38,0.30941551]
[1740034954543,0.28375382,648.15,646.39,1.61304652]
[1740034955234,0.59232912,648.14,646.41,0.30940115]
[1740034955434,0.59233388,648.13,646.41,0.30940115]
[1740034955739,0.28375382,648.12,646.41,0.30940115]
[1740034955942,0.30858959,648.11,646.41,0.30940115]
[1740034956143,0.28375382,648.1,646.41,0.30940115]
[1740034956441,0.59235121,648.09,646.41,0.30940115]
[1740034956642,0.2837521,648.08,646.41,0.30940115]
[1740034956836,0.59235597,648.08,646.41,0.30940115]
[1740034957037,0.2837521,648.07,646.41,0.30940115]
[1740034958037,0.2837521,648.07,646.43,1.15253345]
[1740034958241,0.2837521,648.07,646.45,0.309382]
[1740034958844,0.28375188,648.06,646.45,0.309382]
[1740034959143,0.28375188,648.05,646.45,0.309382]
[1740034959338,0.28375188,648.04,646.45,0.309382]
[1740034959640,0.28375188,648.03,646.45,0.309382]
[1740034959844,0.28375188,648.07,646.45,0.309382]
[1740034960645,0.28375188,648.06,646.48,1.15253345]
[1740034960845,0.28375188,648.07,646.48,1.15253345]
[1740034961045,0.28375188,648.06,646.48,1.15253345]
[1740034961245,0.28375188,648.05,646.48,1.15253345]
[1740034961548,0.28375188,648.04,646.48,1.15253345]
[1740034961744,0.28375188,648.03,646.48,1.15253345]
[1740034961945,0.28375188,648.07,646.48,1.15253345]
[1740034962145,0.28375188,648.06,646.48,1.15253345]
[1740034962444,0.28375188,648.05,646.48,1.15253345]
[1740034962645,0.28375188,648.04,646.5,0.30935808]
[1740034962845,0.28375188,648.07,646.5,0.30935808]
[1740034963039,0.28375188,648.06,646.5,0.30935808]
[1740034963241,0.28375188,648.07,646.53,1.15253345]
[1740034963440,0.28375188,648.07,646.54,0.30933894]
[1740034964842,0.30860387,648.08,646.54,0.30933894]
[1740034965145,0.28377334,648.07,646.54,0.30933894]
[1740034975149,0.28377334,648.07,646.62,1.15253345]
[1740034975348,0.28377334,648.07,646.63,0.30929588]
[1740034977556,0.59238197,648.07,646.63,0.30929588]
[1740034977755,0.28377334,648.06,646.63,0.30929588]
[1740034978357,0.30861816,648.05,646.63,0.30929588]
[1740034978558,0.28377334,648.04,646.63,0.30929588]
[1740034978753,0.5924503,648.03,646.63,0.30929588]
[1740034978958,0.59245506,648.02,646.63,0.30929588]
[1740034979259,0.59245983,648.01,646.63,0.30929588]
[1740034979458,0.59246459,648.0,646.63,0.30929588]
[1740034979656,0.59246935,647.99,646.63,0.30929588]
[1740034979858,0.28382262,647.98,646.63,0.30929588]
[1740034980060,0.59247412,647.98,646.63,0.30929588]
[1740034980260,0.28382262,647.97,646.63,0.30929588]
[1740034980560,0.30866102,647.96,646.63,0.30929588]
[1740034980760,0.28382262,647.95,646.63,0.30929588]
[1740034980963,0.59248841,647.95,646.63,0.30929588]
[1740034981163,0.28382262,647.94,646.63,0.30929588]
[1740034981564,0.59249317,647.94,646.63,0.30929588]
[1740034981857,0.28384253,647.93,646.63,0.30929588]
[1740034982062,0.28384166,647.92,646.63,0.30929588]
[1740034982363,0.28384166,647.91,646.63,0.30929588]
[1740034982559,0.2838532,647.93,646.63,0.30929588]
[1740034982764,0.2838532,647.92,646.63,0.30929588]
[1740034982965,0.2838532,647.93,646.63,0.30929588]
[1740034983165,0.2838532,647.92,646.63,0.30929588]
[1740034983365,0.30867055,647.94,646.63,0.30929588]
[1740034983565,0.28385867,647.93,646.63,0.30929588]
[1740034988265,0.30868008,647.92,646.63,0.30929588]
[1740034988569,0.28385867,647.91,646.63,0.30929588]
[1740034988769,0.30868961,647.9,646.63,0.30929588]
[1740034989069,0.28385867,647.89,646.63,0.30929588]
[1740034989363,0.30868961,647.9,646.63,0.30929588]
[1740034997567,0.283809,647.89,646.63,0.30929588]
[1740034999568,0.30868961,647.9,646.63,0.30929588]
[1740035004970,0.28379596,647.89,646.63,0.30929588]
[1740035005172,0.30868961,647.9,646.63,0.30929588]
[1740035006171,0.28379736,647.89,646.63,0.30929588]
[1740035007172,0.30868961,647.9,646.63,0.30929588]
[1740035007475,0.28379036,647.89,646.63,0.30929588]
[1740035009072,0.30868961,647.9,646.63,0.30929588]
[1740035009270,0.28380652,647.89,646.63,0.30929588]
[1740035015385,0.30869914,647.88,646.63,0.30929588]
[1740035015679,0.28380652,647.87,646.63,0.30929588]
[1740035015883,0.30870867,647.86,646.63,0.30929588]
[1740035016085,0.28380652,647.85,646.63,0.30929588]
[1740035016378,0.3087182,647.84,646.63,0.30929588]
[1740035016584,0.28380652,647.83,646.63,0.30929588]
[1740035017381,0.30872773,647.82,646.63,0.30929588]
[1740035017585,0.28380652,647.81,646.63,0.30929588]
[1740035017780,0.59263346,647.8,646.63,0.30929588]
[1740035018084,0.59263823,647.79,646.63,0.30929588]
[1740035018284,0.59264299,647.78,646.63,0.30929588]
[1740035018479,0.59264776,647.77,646.63,0.30929588]
[1740035018678,0.2838962,647.76,646.63,0.30929588]
[1740035021388,0.28389517,647.75,646.63,0.30929588]
[1740035021588,0.28389517,647.76,646.63,0.30929588]
[1740035021788,0.28389517,647.75,646.63,0.30929588]
[1740035022086,0.28389517,647.74,646.63,0.30929588]
[1740035022287,0.28389517,647.76,646.63,0.30929588]
[1740035022489,0.30875156,647.77,646.63,0.30929588]
[1740035022490,0.28389517,647.75,646.63,0.30929588]
[1740035022685,0.28389517,647.74,646.63,0.30929588]
[1740035022886,0.30875156,647.77,646.63,0.30929588]
[1740035023090,0.28389375,647.76,646.63,0.30929588]
[1740035025199,0.30876109,647.75,646.63,0.30929588]
[1740035025395,0.28389375,647.74,646.63,0.30929588]
[1740035025591,0.30877062,647.73,646.63,0.30929588]
[1740035025794,0.28389375,647.72,646.63,0.30929588]
[1740035025997,0.30878016,647.71,646.63,0.30929588]
[1740035034701,0.28391266,647.7,646.63,0.30929588]
[1740035041505,0.28388519,647.69,646.63,0.30929588]
[1740035041705,0.28388519,647.7,646.63,0.30929588]
[1740035041905,0.28388519,647.69,646.63,0.30929588]
[1740035042206,0.28388519,647.68,646.63,0.30929588]
[1740035042598,0.30878016,647.71,646.63,0.30929588]
[1740035045112,0.28388214,647.7,646.63,0.30929588]
[1740035045613,0.28389122,647.69,646.63,0.30929588]
[1740035045810,0.28389122,647.7,646.63,0.30929588]
[1740035046011,0.30878016,647.71,646.63,0.30929588]
[1740035050108,0.28393701,647.7,646.02,1.15253345]
[1740035050314,0.28393701,647.7,646.39,1.61355136]
[1740035050508,0.30878969,647.69,646.04,0.30957835]
[1740035050710,0.28393701,647.68,646.04,0.30957835]
[1740035051008,0.30879923,647.67,646.04,0.30957835]
[1740035051209,0.28393701,647.66,646.04,0.30957835]
[1740035051409,0.28393701,647.66,646.05,1.61416258]
[1740035053013,0.30881353,647.64,646.06,0.30956877]
[1740035053208,0.28393701,647.63,646.06,0.30956877]
[1740035053413,0.30882307,647.62,646.06,0.30956877]
[1740035053709,0.28393701,647.61,646.06,0.30956877]
[1740035055413,0.28397373,647.6,646.06,0.30956877]
[1740035055716,0.59281111,647.59,646.06,0.30956877]
[1740035056009,0.28397373,647.58,646.06,0.30956877]
[1740035057010,0.30883738,647.59,646.06,0.30956877]
[1740035057214,0.28396767,647.58,646.06,0.30956877]
[1740035058917,0.2839549,647.57,646.06,0.30956877]
[1740035059217,0.2839549,647.56,646.06,0.30956877]
[1740035059514,0.2839549,647.58,646.06,0.30956877]
[1740035059721,0.2839549,647.57,646.06,0.30956877]
[1740035059919,0.2839549,647.56,646.06,0.30956877]
[1740035060219,0.2839549,647.55,646.06,0.30956877]
[1740035060616,0.2839549,647.58,646.06,0.30956877]
[1740035063015,0.28393793,647.57,646.06,0.30956877]
[1740035063215,0.30883738,647.59,646.06,0.30956877]
[1740035063420,0.2839363,647.58,646.06,0.30956877]
[1740035064017,0.30883738,647.59,646.06,0.30956877]
[1740035072426,0.28391999,647.58,646.06,0.30956877]
[1740035073128,0.30883738,647.59,646.06,0.30956877]
[1740035074225,0.30883738,647.59,646.2,1.15253345]
[1740035074724,0.30883738,647.59,646.22,0.30949212]
[1740035075528,0.28389501,647.58,646.22,0.30949212]
[1740035075725,0.30883738,647.59,646.22,0.30949212]
[1740035075925,0.28389049,647.58,646.22,0.30949212]
[1740035076230,0.30883738,647.59,646.22,0.30949212]
[1740035077133,0.30883738,647.59,646.22,1.46202557]
[1740035080338,0.30883738,647.59,646.22,0.30949212]
[1740035107247,0.28392538,647.58,646.22,0.30949212]
[1740035107751,0.30883738,647.59,646.22,0.30949212]
[1740035109053,0.30883738,647.59,646.22,1.46202557]
[1740035109847,0.28393441,647.58,646.22,1.46202557]
[1740035110548,0.28395924,647.57,646.22,1.46202557]
[1740035110753,0.28395924,647.56,646.22,1.46202557]
[1740035111052,0.30883738,647.59,646.22,0.30949212]
[1740035111053,0.28395924,647.55,646.22,0.30949212]
[1740035111247,0.28395924,647.54,646.22,0.30949212]
[1740035111451,0.30883738,647.59,646.22,0.30949212]
[1740035111651,0.28394964,647.58,646.22,0.30949212]
[1740035112149,0.30883738,647.59,646.22,0.30949212]
[1740035112356,0.28394257,647.58,646.22,0.30949212]
[1740035114055,0.28394648,647.57,646.22,0.30949212]
[1740035114256,0.30883738,647.59,646.22,0.30949212]
[1740035114257,0.28394648,647.58,646.22,0.30949212]
[1740035114456,0.28394648,647.57,646.22,0.30949212]
[1740035114650,0.28394648,647.58,646.22,0.30949212]
[1740035114853,0.28394648,647.57,646.22,0.30949212]
[1740035115049,0.28394648,647.56,646.22,0.30949212]
[1740035115253,0.28394648,647.55,646.22,0.30949212]
[1740035115457,0.28394648,647.58,646.22,0.30949212]
[1740035115657,0.28394648,647.57,646.22,0.30949212]
[1740035115850,0.28394648,647.56,646.22,0.30949212]
[1740035116051,0.28394648,647.55,646.22,0.30949212]
[1740035116357,0.28394648,647.54,646.22,0.30949212]
[1740035116555,0.28394648,647.53,646.22,0.30949212]
[1740035116750,0.28394648,647.52,646.22,0.30949212]
[1740035116956,0.28394648,647.51,646.22,0.30949212]
[1740035117256,0.28394648,647.5,646.22,0.30949212]
[1740035117453,0.28394648,647.58,646.22,0.30949212]
[1740035121059,0.30883738,647.59,646.22,0.30949212]
[1740035122358,0.2839633,647.58,646.22,0.30949212]
[1740035123758,0.30883738,647.59,646.22,0.30949212]
[1740035123958,0.28395744,647.58,646.22,0.30949212]
[1740035125461,0.30883738,647.59,646.22,0.30949212]
[1740035125762,0.28395581,647.58,646.22,0.30949212]
[1740035137370,0.28395581,647.58,646.25,1.15253345]
[1740035137571,0.28394504,647.57,646.26,0.30947296]
[1740035137765,0.28394504,647.56,646.26,0.30947296]
[1740035137968,0.28394504,647.58,646.26,0.30947296]
[1740035138171,0.30883738,647.59,646.26,0.30947296]
[1740035138370,0.283946,647.58,646.26,0.30947296]
[1740035139976,0.30883738,647.59,646.26,0.30947296]
[1740035142477,0.30883738,647.59,646.28,1.15253345]
[1740035142671,0.30883738,647.59,646.29,0.3094586]
[1740035145680,0.28392304,647.58,646.29,0.3094586]
[1740035147882,0.2839182,647.57,646.29,0.3094586]
[1740035148081,0.30883738,647.59,646.29,0.3094586]
[1740035148284,0.28390647,647.58,646.29,0.3094586]
[1740035148584,0.30883738,647.59,646.29,0.3094586]
[1740035148778,0.28391661,647.57,646.29,0.3094586]
[1740035148976,0.30883738,647.59,646.29,0.3094586]
[1740035149182,0.28391078,647.58,646.29,0.3094586]
[1740035150878,0.30883738,647.59,646.29,0.3094586]
[1740035160992,0.2839419,647.58,646.29,0.3094586]
[1740035164795,0.30883738,647.59,646.29,0.3094586]
[1740035164994,0.28394169,647.58,646.29,0.3094586]
[1740035171803,0.30884692,647.57,646.29,0.3094586]
[1740035179910,0.28399043,647.56,646.29,0.3094586]
[1740035180111,0.30885645,647.55,646.29,0.3094586]
[1740035180310,0.28399043,647.54,646.29,0.3094586]
[1740035180511,0.59287889,647.53,646.29,0.3094586]
[1740035180811,0.59288366,647.52,646.29,0.3094586]
[1740035181011,0.59288843,647.51,646.29,0.3094586]
[1740035181311,0.3088803,647.5,646.29,0.3094586]
[1740035183911,0.28401489,647.49,646.29,0.3094586]
[1740035184212,0.59289996,647.49,646.29,0.3094586]
[1740035184412,0.28401489,647.48,646.29,0.3094586]
[1740035184612,0.30888507,647.49,646.29,0.3094586]
[1740035187709,0.28399931,647.48,646.29,0.3094586]
[1740035188615,0.30888507,647.49,646.29,0.3094586]
[1740035188815,0.28400091,647.48,646.29,0.3094586]
[1740035193818,0.28399907,647.47,646.29,0.3094586]
[1740035194115,0.28399907,647.46,646.29,0.3094586]
[1740035194311,0.28399907,647.48,646.29,0.3094586]
[1740035194516,0.30888507,647.49,646.29,0.3094586]
[1740035211628,0.28397925,647.48,646.29,0.3094586]
[1740035216435,0.28400367,647.47,646.29,0.3094586]
[1740035216737,0.28400367,647.46,646.29,0.3094586]
[1740035216937,0.28400367,647.48,646.29,0.3094586]
[1740035217138,0.28400367,647.47,646.29,0.3094586]
[1740035217339,0.28400367,647.48,646.29,0.3094586]
[1740035217539,0.28400367,647.47,646.29,0.3094586]
[1740035217739,0.28400367,647.46,646.29,0.3094586]
[1740035217936,0.28400367,647.45,646.29,0.3094586]
[1740035218235,0.28400367,647.44,646.29,0.3094586]
[1740035218441,0.30888507,647.49,646.29,0.3094586]
[1740035218640,0.28400171,647.48,646.29,0.3094586]
[1740035220337,0.2840123,647.47,646.29,0.3094586]
[1740035220548,0.2840123,647.48,646.29,0.3094586]
[1740035220740,0.2840123,647.47,646.29,0.3094586]
[1740035220937,0.2840123,647.48,646.29,0.3094586]
[1740035221139,0.28401167,647.47,646.29,0.3094586]
[1740035221338,0.28401167,647.46,646.29,0.3094586]
[1740035221638,0.30888507,647.49,646.29,0.3094586]
[1740035221639,0.28401167,647.45,646.29,0.3094586]
[1740035221839,0.28401167,647.44,646.29,0.3094586]
[1740035222036,0.28401167,647.43,646.29,0.3094586]
[1740035222236,0.28401167,647.42,646.29,0.3094586]
[1740035222435,0.28401167,647.41,646.29,0.3094586]
[1740035222736,0.28401203,647.4,646.29,0.3094586]
[1740035222937,0.30888507,647.49,646.29,0.3094586]
[1740035223241,0.28401339,647.48,646.29,0.3094586]
[1740035226342,0.28400075,647.47,646.29,0.3094586]
[1740035226537,0.59290014,647.46,646.29,0.3094586]
[1740035226742,0.59290491,647.45,646.29,0.3094586]
[1740035226941,0.59290968,647.44,646.29,0.3094586]
[1740035227143,0.59291445,647.43,646.29,0.3094586]
[1740035227337,0.59291922,647.42,646.29,0.3094586]
[1740035227540,0.59292399,647.41,646.29,0.3094586]
[1740035227741,0.59292876,647.4,646.29,0.3094586]
[1740035227942,0.59293354,647.39,646.29,0.3094586]
[1740035228143,0.59293831,647.38,646.29,0.3094586]
[1740035228338,0.30894233,647.37,646.29,0.3094586]
[1740035229141,0.28406939,647.36,646.29,0.3094586]
[1740035229341,0.30895188,647.35,646.29,0.3094586]
[1740035229744,0.28407037,647.34,646.29,0.3094586]
[1740035230042,0.30896142,647.33,646.29,0.3094586]
[1740035230244,0.28407037,647.32,646.29,0.3094586]
[1740035231345,0.30896142,647.33,646.29,0.3094586]
[1740035231544,0.28406981,647.32,646.29,0.3094586]
[1740035237351,0.30896142,647.33,646.29,0.3094586]
[1740035237547,0.28406009,647.32,646.29,0.3094586]
[1740035244164,0.28406871,647.31,646.29,0.3094586]
[1740035244359,0.28406871,647.3,646.29,0.3094586]
[1740035244564,0.28406871,647.29,646.29,0.3094586]
[1740035244864,0.28406871,647.28,646.29,0.3094586]
[1740035245067,0.28406871,647.32,646.29,0.3094586]
[1740035245259,0.28406871,647.27,646.29,0.3094586]
[1740035245464,0.28406871,647.26,646.29,0.3094586]
[1740035245658,0.28406871,647.25,646.29,0.3094586]
[1740035245862,0.28406871,647.24,646.29,0.3094586]
[1740035246062,0.28406476,647.32,646.29,0.3094586]
[1740035246265,0.28406721,647.31,646.29,0.3094586]
[1740035246461,0.28406721,647.32,646.29,0.3094586]
[1740035246658,0.28406721,647.31,646.29,0.3094586]
[1740035246963,0.30896142,647.33,646.29,0.3094586]
[1740035247159,0.28406477,647.32,646.29,0.3094586]
[1740035248863,0.28407311,647.31,646.29,0.3094586]
[1740035249069,0.28407311,647.32,646.29,0.3094586]
[1740035249268,0.28407311,647.31,646.29,0.3094586]
[1740035249468,0.28407311,647.3,646.29,0.3094586]
[1740035249864,0.28407311,647.29,646.29,0.3094586]
[1740035250066,0.28407311,647.32,646.29,0.3094586]
[1740035250371,0.28407311,647.31,646.29,0.3094586]
[1740035250567,0.28407077,647.3,646.29,0.3094586]
[1740035250768,0.28407077,647.29,646.29,0.3094586]
[1740035250964,0.28407077,647.28,646.29,0.3094586]
[1740035251166,0.28407077,647.32,646.29,0.3094586]
[1740035251465,0.28407077,647.31,646.29,0.3094586]
[1740035251763,0.28407077,647.3,646.29,0.3094586]
[1740035251969,0.28407077,647.32,646.29,0.3094586]
[1740035252263,0.28407077,647.31,646.29,0.3094586]
[1740035252470,0.28407077,647.3,646.29,0.3094586]
[1740035252669,0.28407077,647.29,646.29,0.3094586]
[1740035252870,0.28407077,647.28,646.29,0.3094586]
[1740035253068,0.28407077,647.27,646.29,0.3094586]
[1740035253268,0.28407077,647.32,646.29,0.3094586]
[1740035253466,0.28407077,647.31,646.29,0.3094586]
[1740035253970,0.30896619,647.32,646.29,0.3094586]
[1740035254274,0.28407314,647.31,646.29,0.3094586]
[1740035255767,0.28407265,647.3,646.29,0.3094586]
[1740035255970,0.28407265,647.29,646.29,0.3094586]
[1740035256172,0.28407265,647.31,646.15,1.61444339]